[Event "FIDE WAC U1700 2021"]
[Site "Rhodes"]
[Date "2021.10.22"]
[Round "6.5"]
[White "Farhaan, M."]
[Black "Abdulrahim, Salem"]
[Result "1/2-1/2"]
[ECO "D36"]
[WhiteElo "1529"]
[BlackElo "1629"]
[Annotator "NA"]
[PlyCount "138"]
[EventDate "2021.10.17"]
[EventType "swiss"]
[EventCountry "GRE"]
[SourceTitle "playchess.com"]
[Source "ChessBase"]
[SourceQuality "1"]
[TimeControl "5400+30"]

1. d4 {[%emt 0:00:02]} d5 {[%emt 0:00:05]} 2. c4 {[%emt 0:00:04]} e6 {[%emt 0:00:06]} 3. Nc3 {[%emt 0:00:02]} Nf6 {[%emt 0:00:08]} 4. cxd5 {[%emt 0:00:05]} exd5 {[%emt 0:00:05]} 5. Bg5 {[%emt 0:00:06]} Be7 {[%emt 0:00:15]} 6. e3 {[%emt 0:00:10]} c6 {[%emt 0:00:08]} 7. Bd3 {[%emt 0:00:07]} Nbd7 {[%emt 0:00:10]} 8. Qc2 {[%emt 0:00:42]} Nf8 {[%emt 0:00:26]} 9. Nge2 {[%emt 0:00:50]} Ng6 {[%emt 0:00:08]} 10. f3 {[%emt 0:02:29]} O-O {[%emt 0:01:11]} 11. O-O {[%emt 0:00:58]} Be6 {[%emt 0:01:37]} 12. e4 {[%emt 0:08:46]} dxe4 {[%emt 0:03:04]} 13. fxe4 {[%emt 0:01:57]} Ng4 {[%emt 0:03:56]} 14. Bxe7 {[%emt 0:00:48]} Qxe7 {[%emt 0:02:02]} 15. Rf3 {[%emt 0:02:35]} Rad8 {[%emt 0:10:00]} 16. h3 {[%emt 0:00:59]} Nf6 {[%emt 0:02:37]} 17. Raf1 {[%emt 0:01:09]} c5 {[%emt 0:07:28]} 18. d5 {[%emt 0:07:45]} c4 {[%emt 0:01:34]} 19. dxe6 {[%emt 0:04:14]} Qxe6 {[%emt 0:01:25]} 20. Nd5 {[%emt 0:10:58]} cxd3 {[%emt 0:18:32]} 21. Nxf6+ {[%emt 0:00:52]} gxf6 {[%emt 0:00:09]} 22. Rxd3 {[%emt 0:00:26]} Qxe4 {[%emt 0:01:39]} 23. Rc3 {[%emt 0:00:25]} Rfe8 {[%emt 0:05:50]} 24. Ng3 {[%emt 0:00:54]} Qxc2 {[%emt 0:01:39]} 25. Rxc2 {[%emt 0:00:01]} Re6 {[%emt 0:00:18]} 26. Nh5 {[%emt 0:00:29]} Red6 {[%emt 0:15:05]} 27. Nxf6+ {[%emt 0:00:59]} Kg7 {[%emt 0:00:33]} 28. Nh5+ {[%emt 0:01:10]} Kh6 {[%emt 0:01:57]} 29. Ng3 {[%emt 0:00:58]} Rd2 {[%emt 0:02:08]} 30. Rc5 {[%emt 0:06:45]} Kg7 {[%emt 0:02:56]} 31. Nf5+ {[%emt 0:02:13]} Kf8 {[%emt 0:03:28]} 32. Rf2 {[%emt 0:16:24]} Rxf2 33. Kxf2 {[%emt 0:00:02]} Ne7 {[%emt 0:03:56]} 34. Nxe7 {[%emt 0:01:25]} Kxe7 {[%emt 0:00:03]} 35. Ke3 {[%emt 0:00:06]} Kd6 {[%emt 0:01:28]} 36. Rh5 {[%emt 0:00:52]} Rg8 {[%emt 0:00:15]} 37. g4 {[%emt 0:00:06]} Rg7 {[%emt 0:00:23]} 38. Kf4 {[%emt 0:00:19]} Ke6 {[%emt 0:00:22]} 39. h4 {[%emt 0:00:18]} f6 {[%emt 0:00:18]} 40. Rh6 {[%emt 0:00:11]} Ke7 {[%emt 0:05:14]} 41. Kf5 {[%emt 0:00:17]} Rf7 {[%emt 0:01:10]} 42. b3 {[%emt 0:01:30]} b6 {[%emt 0:01:44]} 43. b4 {[%emt 0:00:15]} Rg7 {[%emt 0:01:15]} 44. Rxf6 {[%emt 0:00:13]} Rxg4 {[%emt 0:00:43]} 45. Re6+ {[%emt 0:02:27]} Kd7 {[%emt 0:00:19]} 46. Kxg4 {[%emt 0:08:11]} Kxe6 {[%emt 0:00:02]} 47. Kg5 {[%emt 0:00:01]} Kf7 {[%emt 0:00:14]} 48. Kh6 {[%emt 0:00:06]} Kg8 {[%emt 0:00:04]} 49. b5 {[%emt 0:00:13]} Kh8 {[%emt 0:00:07]} 50. Kg5 {[%emt 0:00:10]} Kg7 {[%emt 0:00:06]} 51. h5 {[%emt 0:01:05]} Kf7 {[%emt 0:05:08]} 52. Kg4 {[%emt 0:03:23]} Ke6 {[%emt 0:01:01]} 53. Kg5 {[%emt 0:00:11]} Kf7 {[%emt 0:00:07]} 54. Kf5 {[%emt 0:06:12]} Kg7 {[%emt 0:01:27]} 55. a3 {[%emt 0:01:42]} Kh6 {[%emt 0:00:55]} 56. Kg4 {[%emt 0:00:08]} Kg7 {[%emt 0:00:07]} 57. Kg5 {[%emt 0:00:12]} Kf7 {[%emt 0:00:57]} 58. Kh6 {[%emt 0:04:35]} Kg8 {[%emt 0:00:02]} 59. a4 {[%emt 0:01:55]} Kh8 {[%emt 0:00:11]} 60. Kg5 {[%emt 0:00:09]} Kg7 {[%emt 0:00:24]} 61. h6+ {[%emt 0:00:44]} Kg8 {[%emt 0:00:15]} 62. Kf6 {[%emt 0:00:10]} Kf8 {[%emt 0:00:06]} 63. Ke6 {[%emt 0:00:06]} Ke8 {[%emt 0:00:03]} 64. Kd6 {[%emt 0:00:59]} Kd8 {[%emt 0:00:05]} 65. Kc6 {[%emt 0:01:11]} Kc8 {[%emt 0:00:01]} 66. Kd6 {[%emt 0:00:38]} Kd8 {[%emt 0:00:01]} 67. Ke6 {[%emt 0:01:17]} Ke8 {[%emt 0:00:02]} 68. Kd6 {[%emt 0:00:07]} Kd8 {[%emt 0:00:03]} 69. Kc6 {[%emt 0:00:37]} Kc8 {[%emt 0:00:03]} 1/2-1/2

[Event "FIDE WAC U1700 2021"]
[Site "Rhodes"]
[Date "2021.10.23"]
[Round "7.1"]
[White "Michailov, Andrej"]
[Black "Ainakul, Mukhtar"]
[Result "0-1"]
[ECO "B06"]
[WhiteElo "1656"]
[BlackElo "1674"]
[Annotator "NA RC"]
[PlyCount "108"]
[EventDate "2021.10.17"]
[EventType "swiss"]
[EventCountry "GRE"]
[SourceTitle "playchess.com"]
[Source "ChessBase"]
[SourceQuality "1"]
[TimeControl "5400+30"]

1. e4 {[%emt 0:00:04]} g6 {[%emt 0:02:13]} 2. d4 {[%emt 0:00:23]} Bg7 {[%emt 0:00:01]} 3. Nc3 {[%emt 0:00:13]} d6 {[%emt 0:00:06]} 4. Be3 {[%emt 0:00:51]} a6 {[%emt 0:00:34]} 5. Qd2 {[%emt 0:02:09]} b5 {[%emt 0:00:21]} 6. f3 {[%emt 0:04:17]} Bb7 {[%emt 0:03:02]} 7. O-O-O {[%emt 0:00:47]} Nd7 {[%emt 0:01:02]} 8. Kb1 {[%emt 0:05:04]} e6 {[%emt 0:02:41]} 9. g4 {[%emt 0:03:56]} h5 {[%emt 0:04:28]} 10. gxh5 {[%emt 0:01:57]} Rxh5 {[%emt 0:00:19]} 11. Nce2 {[%emt 0:00:16]} Ngf6 {[%emt 0:02:57]} 12. Ng3 {[%emt 0:01:26]} Rh8 {[%emt 0:00:45]} 13. N1e2 {[%emt 0:03:21]} Nb6 {[%emt 0:05:02]} 14. Nf4 {[%emt 0:02:06]} Qe7 {[%emt 0:16:41]} 15. h4 {[%emt 0:07:24]} O-O-O {[%emt 0:06:06]} 16. Bd3 {[%emt 0:03:00]} e5 {[%emt 0:06:58]} 17. Ng2 {[%emt 0:05:43]} d5 {[%emt 0:08:23]} 18. dxe5 {[%emt 0:13:50]} dxe4 {[%emt 0:03:04]} 19. Bxb6 {[%emt 0:11:58]} exd3 {[%emt 0:09:35]} 20. Rde1 {[%emt 0:09:01]} cxb6 {[%emt 0:07:22]} 21. Qc3+ {[%emt 0:01:28]} Qc5 {[%emt 0:01:32]} 22. exf6 {[%emt 0:00:19]} Qxc3 {[%emt 0:01:39]} 23. bxc3 {[%emt 0:00:10]} d2 {[%emt 0:00:40]} 24. fxg7 {[%emt 0:01:47]} dxe1=Q+ {[%emt 0:00:19]} 25. Rxe1 {[%emt 0:00:06]} Rhg8 {[%emt 0:00:32]} 26. Ne4 {[%emt 0:01:34]} Rxg7 {[%emt 0:00:39]} 27. Ng5 {[%emt 0:00:42]} Rdg8 {[%emt 0:02:02]} 28. Nf4 {[%emt 0:01:24]} f6 {[%emt 0:00:16]} 29. Nge6 {[%emt 0:00:15]} Re7 {[%emt 0:00:19]} 30. Rg1 {[%emt 0:00:23]} Bxf3 {[%emt 0:00:49]} 31. Nd4 {[%emt 0:00:44]} Be4 {[%emt 0:00:23]} 32. Kb2 {[%emt 0:00:47]} Rh7 {[%emt 0:00:40]} 33. Re1 {[%emt 0:01:03]} f5 {[%emt 0:00:13]} 34. Rg1 {[%emt 0:00:46]} Rxh4 {[%emt 0:01:47]} 35. Rxg6 {[%emt 0:00:59]} Rxg6 {[%emt 0:00:11]} 36. Nxg6 {[%emt 0:00:03]} Rh5 {[%emt 0:00:29]} 37. Nf4 {[%emt 0:00:33]} Rh2 {[%emt 0:00:11]} 38. Ng6 {[%emt 0:01:37]} Kd7 {[%emt 0:00:13]} 39. Ne5+ {[%emt 0:00:25]} Kd6 {[%emt 0:00:40]} 40. Nf7+ {[%emt 0:00:23]} Ke7 {[%emt 0:00:13]} 41. Ne5 {[%emt 0:00:12]} Kf6 {[%emt 0:00:28]} 42. Nd7+ {[%emt 0:00:34]} Kg5 {[%emt 0:00:07]} 43. Nxb6 {[%emt 0:00:11]} f4 {[%emt 0:00:18]} 44. a4 {[%emt 0:00:31]} f3 {[%emt 0:00:29]} 45. Nxf3+ {[%emt 0:00:28]} Bxf3 {[%emt 0:00:02]} 46. axb5 {[%emt 0:00:10]} axb5 {[%emt 0:00:11]} 47. c4 {[%emt 0:00:33]} Rh6 {[%emt 0:00:04]} 48. c5 {[%emt 0:01:57]} Rc6 {[%emt 0:00:17]} 49. Nd7 {[%emt 0:00:36]} Bg4 {[%emt 0:00:05]} 50. Ne5 {[%emt 0:01:10]} Rxc5 {[%emt 0:00:04]} 51. Nd3 {[%emt 0:00:07]} Rc4 {[%emt 0:00:08]} 52. Ne5 {[%emt 0:00:12]} Rc7 {[%emt 0:00:33]} 53. Kb3 {[%emt 0:00:10]} Be2 {[%emt 0:00:25]} 54. c3 {[%emt 0:00:19]} Kf5 {[%emt 0:00:05]} 0-1

[Event "FIDE WAC U1700 2021"]
[Site "Rhodes"]
[Date "2021.10.23"]
[Round "7.2"]
[White "Abdivaliev, Daniial"]
[Black "Sodbilegt, Naranbold"]
[Result "0-1"]
[ECO "B90"]
[WhiteElo "1482"]
[BlackElo "1638"]
[Annotator "NA RC"]
[PlyCount "74"]
[EventDate "2021.10.17"]
[EventType "swiss"]
[EventCountry "GRE"]
[SourceTitle "playchess.com"]
[Source "ChessBase"]
[SourceQuality "1"]
[TimeControl "5400+30"]

1. e4 {[%emt 0:01:50]} c5 {[%emt 0:00:05]} 2. Nf3 {[%emt 0:00:04]} d6 {[%emt 0:00:09]} 3. d4 {[%emt 0:00:03]} cxd4 {[%emt 0:00:05]} 4. Nxd4 {[%emt 0:00:03]} Nf6 {[%emt 0:00:09]} 5. Nc3 {[%emt 0:00:05]} a6 {[%emt 0:00:04]} 6. f3 {[%emt 0:00:07]} e5 {[%emt 0:00:18]} 7. Nb3 {[%emt 0:00:04]} Be6 {[%emt 0:00:16]} 8. Be3 {[%emt 0:00:06]} Be7 {[%emt 0:00:19]} 9. Qd2 {[%emt 0:00:22]} Nbd7 {[%emt 0:00:13]} 10. g4 {[%emt 0:00:22]} b5 {[%emt 0:00:38]} 11. g5 {[%emt 0:03:24]} Nh5 {[%emt 0:03:27]} 12. Nd5 {[%emt 0:00:27]} Bxd5 {[%emt 0:00:59]} 13. exd5 {[%emt 0:00:06]} Nb6 {[%emt 0:04:54]} 14. Na5 {[%emt 0:00:09]} Qc7 {[%emt 0:01:35]} 15. O-O-O {[%emt 0:02:04]} Bd8 {[%emt 0:19:20]} 16. f4 {[%emt 0:15:18]} Nxf4 {[%emt 0:01:17]} 17. Bxf4 {[%emt 0:00:23]} exf4 {[%emt 0:00:41]} 18. Re1+ {[%emt 0:05:30]} Kf8 {[%emt 0:01:02]} 19. h4 {[%emt 0:00:06]} Nd7 {[%emt 0:31:59]} 20. Nc6 {[%emt 0:00:35]} Ne5 {[%emt 0:01:03]} 21. Nxe5 {[%emt 0:04:07]} dxe5 {[%emt 0:00:22]} 22. Kb1 {[%emt 0:02:32]} Be7 {[%emt 0:01:07]} 23. Rh3 {[%emt 0:02:36]} Bd6 {[%emt 0:01:33]} 24. Rc3 {[%emt 0:00:07]} Qe7 {[%emt 0:03:44]} 25. Rc6 {[%emt 0:04:56]} g6 {[%emt 0:02:05]} 26. Re4 {[%emt 0:06:04]} h6 {[%emt 0:00:53]} 27. h5 {[%emt 0:02:52]} hxg5 {[%emt 0:01:00]} 28. hxg6 {[%emt 0:00:06]} f5 {[%emt 0:01:09]} 29. Re2 {[%emt 0:00:28]} g4 {[%emt 0:01:06]} 30. Rh2 {[%emt 0:00:07]} Kg7 {[%emt 0:01:33]} 31. Rxh8 {[%emt 0:07:22]} Rxh8 {[%emt 0:00:10]} 32. Rxa6 {[%emt 0:00:43]} Rh1 {[%emt 0:02:44]} 33. Qg2 {[%emt 0:01:42]} Qh4 {[%emt 0:00:22]} 34. a3 {[%emt 0:00:20]} Qe1+ {[%emt 0:01:32]} 35. Ka2 {[%emt 0:00:06]} Qxf1 {[%emt 0:00:32]} 36. Qd2 {[%emt 0:01:28]} Qc4+ {[%emt 0:00:02]} 37. b3 {[%emt 0:00:26]} Qf1 {[%emt 0:02:51]} 0-1

[Event "FIDE WAC U1700 2021"]
[Site "Rhodes"]
[Date "2021.10.23"]
[Round "7.3"]
[White "Bozkurt, Serkan"]
[Black "Farhaan, M."]
[Result "0-1"]
[ECO "D11"]
[WhiteElo "1668"]
[BlackElo "1529"]
[Annotator "NA"]
[PlyCount "90"]
[EventDate "2021.10.17"]
[EventType "swiss"]
[EventCountry "GRE"]
[SourceTitle "playchess.com"]
[Source "ChessBase"]
[SourceQuality "1"]
[TimeControl "5400+30"]

1. d4 {[%emt 0:00:03]} d5 {[%emt 0:00:07]} 2. Nf3 {[%emt 0:00:16]} Nf6 {[%emt 0:00:02]} 3. g3 {[%emt 0:00:07]} Bf5 {[%emt 0:00:17]} 4. Bg2 {[%emt 0:00:10]} e6 {[%emt 0:00:07]} 5. O-O {[%emt 0:00:06]} Nbd7 {[%emt 0:00:17]} 6. c4 {[%emt 0:00:37]} c6 {[%emt 0:00:06]} 7. Nc3 {[%emt 0:00:35]} Be7 {[%emt 0:02:01]} 8. cxd5 {[%emt 0:08:55]} exd5 {[%emt 0:00:15]} 9. Re1 {[%emt 0:00:08]} O-O {[%emt 0:00:23]} 10. Ne5 {[%emt 0:04:26]} Re8 {[%emt 0:09:15]} 11. Bf4 {[%emt 0:08:23]} Nxe5 {[%emt 0:11:48]} 12. Bxe5 {[%emt 0:12:21]} Qb6 {[%emt 0:02:03]} 13. Na4 {[%emt 0:05:06]} Qa5 {[%emt 0:01:36]} 14. a3 {[%emt 0:02:49]} Nd7 {[%emt 0:09:11]} 15. b4 {[%emt 0:05:29]} Qd8 {[%emt 0:00:09]} 16. Bf4 {[%emt 0:02:05]} b5 {[%emt 0:04:22]} 17. Nc3 {[%emt 0:06:14]} a5 {[%emt 0:12:46]} 18. Qb3 {[%emt 0:03:46]} Nb6 {[%emt 0:05:16]} 19. h4 {[%emt 0:14:59]} axb4 {[%emt 0:01:15]} 20. axb4 {[%emt 0:00:02]} Qd7 {[%emt 0:01:29]} 21. Red1 {[%emt 0:05:05]} Nc4 {[%emt 0:00:59]} 22. f3 {[%emt 0:05:28]} Rxa1 {[%emt 0:00:37]} 23. Rxa1 {[%emt 0:00:03]} Bf6 {[%emt 0:00:22]} 24. Qd1 {[%emt 0:07:19]} h6 {[%emt 0:01:06]} 25. Ra6 {[%emt 0:03:16]} Qb7 {[%emt 0:01:04]} 26. Ra2 {[%emt 0:00:33]} Qb6 {[%emt 0:00:50]} 27. Kh2 {[%emt 0:04:08]} Bxd4 {[%emt 0:00:33]} 28. Nb1 {[%emt 0:01:12]} Bf6 {[%emt 0:01:06]} 29. e4 {[%emt 0:00:29]} dxe4 {[%emt 0:02:26]} 30. fxe4 {[%emt 0:00:00]} Rd8 {[%emt 0:00:07]} 31. Qe2 {[%emt 0:01:09]} Be6 {[%emt 0:00:11]} 32. e5 {[%emt 0:00:33]} Be7 {[%emt 0:01:10]} 33. Nc3 {[%emt 0:00:21]} Bxb4 {[%emt 0:00:31]} 34. Ne4 {[%emt 0:00:25]} Be7 {[%emt 0:00:49]} 35. h5 {[%emt 0:00:40]} Qd4 {[%emt 0:01:17]} 36. Nd6 {[%emt 0:00:35]} Nxd6 {[%emt 0:00:56]} 37. exd6 {[%emt 0:00:01]} Bf6 {[%emt 0:00:30]} 38. Rd2 {[%emt 0:00:26]} Qc5 {[%emt 0:00:27]} 39. Be3 {[%emt 0:00:44]} Qf5 {[%emt 0:00:56]} 40. Bb6 {[%emt 0:00:48]} Rf8 {[%emt 0:00:02]} 41. Bxc6 {[%emt 0:00:33]} Qh3+ {[%emt 0:00:15]} 42. Kg1 {[%emt 0:00:00]} Qxg3+ {[%emt 0:00:02]} 43. Qg2 {[%emt 0:00:43]} Qe1+ {[%emt 0:00:28]} 44. Qf1 {[%emt 0:00:50]} Qxd2 {[%emt 0:00:13]} 45. Qf2 {[%emt 0:00:14]} Qe3 {[%emt 0:00:23]} 0-1

[Event "FIDE WAC U1700 2021"]
[Site "Rhodes"]
[Date "2021.10.23"]
[Round "7.4"]
[White "Sulaimanov, Tilekmatali"]
[Black "Saket, Kumar"]
[Result "0-1"]
[ECO "D27"]
[WhiteElo "1657"]
[BlackElo "1407"]
[Annotator "NA RC"]
[PlyCount "78"]
[EventDate "2021.10.17"]
[EventType "swiss"]
[EventCountry "GRE"]
[SourceTitle "playchess.com"]
[Source "ChessBase"]
[SourceQuality "1"]
[TimeControl "5400+30"]

1. d4 {[%emt 0:00:06]} d5 {[%emt 0:00:05]} 2. Nf3 {[%emt 0:00:21]} Nf6 {[%emt 0:00:14]} 3. c4 {[%emt 0:00:21]} dxc4 {[%emt 0:00:24]} 4. e3 {[%emt 0:07:58]} e6 {[%emt 0:00:49]} 5. Bxc4 {[%emt 0:00:59]} c5 {[%emt 0:00:07]} 6. O-O {[%emt 0:02:36]} a6 {[%emt 0:00:07]} 7. a4 {[%emt 0:06:53]} cxd4 {[%emt 0:01:46]} 8. Nxd4 {[%emt 0:05:57]} Bd6 {[%emt 0:01:08]} 9. Nd2 {[%emt 0:17:51]} O-O {[%emt 0:01:50]} 10. b3 {[%emt 0:07:26]} Bd7 {[%emt 0:09:00]} 11. Bb2 {[%emt 0:09:13]} Nc6 {[%emt 0:02:09]} 12. N2f3 {[%emt 0:02:30]} Qe7 {[%emt 0:02:52]} 13. Qe2 {[%emt 0:05:10]} e5 {[%emt 0:02:23]} 14. Nxc6 {[%emt 0:01:02]} Bxc6 {[%emt 0:00:22]} 15. Nh4 {[%emt 0:10:10]} g6 {[%emt 0:03:00]} 16. Rfd1 {[%emt 0:03:17]} Rad8 {[%emt 0:07:53]} 17. Nf3 {[%emt 0:00:17]} Rd7 {[%emt 0:04:42]} 18. Rxd6 {[%emt 0:05:39]} Rxd6 {[%emt 0:10:50]} 19. Ba3 {[%emt 0:00:05]} Rfd8 {[%emt 0:01:06]} 20. Bxd6 {[%emt 0:00:50]} Qxd6 {[%emt 0:00:24]} 21. Qb2 {[%emt 0:03:36]} Bxf3 {[%emt 0:04:12]} 22. gxf3 {[%emt 0:00:04]} e4 {[%emt 0:01:07]} 23. Be2 {[%emt 0:01:45]} Qe6 {[%emt 0:03:15]} 24. Rd1 {[%emt 0:00:47]} Rxd1+ {[%emt 0:00:25]} 25. Bxd1 {[%emt 0:00:04]} Qd5 {[%emt 0:00:49]} 26. Qd4 {[%emt 0:02:49]} Qf5 {[%emt 0:06:15]} 27. fxe4 {[%emt 0:04:23]} Nxe4 {[%emt 0:00:00]} 28. f3 {[%emt 0:00:49]} Ng5 {[%emt 0:00:00]} 29. Kf2 {[%emt 0:00:54]} h5 {[%emt 0:00:00]} 30. h4 {[%emt 0:00:55]} Ne6 {[%emt 0:00:00]} 31. Qe4 {[%emt 0:00:11]} Qf6 {[%emt 0:00:00]} 32. Bc2 {[%emt 0:00:51]} b6 {[%emt 0:00:14]} 33. Qa8+ {[%emt 0:00:36]} Kg7 {[%emt 0:00:13]} 34. Qxa6 {[%emt 0:00:32]} Qxh4+ {[%emt 0:00:27]} 35. Ke2 {[%emt 0:02:16]} Qh2+ {[%emt 0:00:05]} 36. Kd1 {[%emt 0:00:33]} Qg1+ {[%emt 0:00:10]} 37. Ke2 {[%emt 0:00:04]} Qg2+ {[%emt 0:00:02]} 38. Kd1 {[%emt 0:00:01]} Qxf3+ {[%emt 0:00:02]} 39. Qe2 {[%emt 0:00:01]} Qd5+ {[%emt 0:00:13]} 0-1

[Event "FIDE WAC U1700 2021"]
[Site "Rhodes"]
[Date "2021.10.24"]
[Round "8.1"]
[White "Ainakul, Mukhtar"]
[Black "Farhaan, M."]
[Result "1-0"]
[ECO "E09"]
[WhiteElo "1674"]
[BlackElo "1529"]
[Annotator "NA"]
[PlyCount "57"]
[EventDate "2021.10.17"]
[EventType "swiss"]
[EventCountry "GRE"]
[SourceTitle "playchess.com"]
[Source "ChessBase"]
[SourceQuality "1"]
[TimeControl "5400+30"]

1. d4 {[%emt 0:00:06]} d5 {[%emt 0:00:14]} 2. c4 {[%emt 0:00:04]} e6 {[%emt 0:00:02]} 3. Nf3 {[%emt 0:00:05]} Nf6 {[%emt 0:00:02]} 4. g3 {[%emt 0:00:23]} Nbd7 {[%emt 0:00:23]} 5. Bg2 {[%emt 0:00:24]} Be7 {[%emt 0:02:48]} 6. O-O {[%emt 0:00:11]} O-O {[%emt 0:00:06]} 7. Qc2 {[%emt 0:00:09]} Re8 {[%emt 0:01:22]} 8. b3 {[%emt 0:04:39]} c6 {[%emt 0:00:59]} 9. Nbd2 {[%emt 0:04:17]} Bb4 {[%emt 0:03:51]} 10. Bb2 {[%emt 0:02:45]} Nf8 {[%emt 0:03:05]} 11. e4 {[%emt 0:01:47]} Ng6 {[%emt 0:01:46]} 12. Rad1 {[%emt 0:06:42]} a5 {[%emt 0:05:07]} 13. a3 {[%emt 0:08:52]} Bf8 {[%emt 0:09:57]} 14. h4 {[%emt 0:07:57]} b6 {[%emt 0:06:02]} 15. e5 {[%emt 0:01:17]} Nd7 {[%emt 0:02:20]} 16. Ng5 {[%emt 0:06:53]} Be7 {[%emt 0:07:52]} 17. f4 {[%emt 0:03:04]} Ndf8 {[%emt 0:01:02]} 18. h5 {[%emt 0:04:38]} Nh8 {[%emt 0:03:13]} 19. Ndf3 {[%emt 0:00:12]} f6 {[%emt 0:00:36]} 20. exf6 {[%emt 0:02:08]} Bxf6 {[%emt 0:01:18]} 21. Rfe1 {[%emt 0:03:16]} Ra7 {[%emt 0:03:54]} 22. a4 {[%emt 0:06:15]} Nf7 {[%emt 0:00:42]} 23. Nxf7 {[%emt 0:04:01]} Rxf7 {[%emt 0:00:24]} 24. Ba3 {[%emt 0:00:39]} Bb7 {[%emt 0:02:33]} 25. Ne5 {[%emt 0:03:59]} Bxe5 {[%emt 0:04:22]} 26. Rxe5 {[%emt 0:01:35]} Nd7 {[%emt 0:00:22]} 27. Re3 {[%emt 0:02:32]} Nf6 {[%emt 0:23:58]} 28. Qe2 {[%emt 0:00:18]} Qd7 {[%emt 0:00:54]} 29. g4 {[%emt 0:04:41]} 1-0

[Event "FIDE WAC U1700 2021"]
[Site "Rhodes"]
[Date "2021.10.24"]
[Round "8.2"]
[White "Saket, Kumar"]
[Black "Sodbilegt, Naranbold"]
[Result "0-1"]
[ECO "B92"]
[WhiteElo "1407"]
[BlackElo "1638"]
[Annotator "NA"]
[PlyCount "42"]
[EventDate "2021.10.17"]
[EventType "swiss"]
[EventCountry "GRE"]
[SourceTitle "playchess.com"]
[Source "ChessBase"]
[SourceQuality "1"]
[TimeControl "5400+30"]

1. e4 {[%emt 0:00:00]} c5 {[%emt 0:00:05]} 2. Nf3 {[%emt 0:00:06]} d6 {[%emt 0:00:05]} 3. d4 {[%emt 0:00:04]} cxd4 {[%emt 0:00:04]} 4. Nxd4 {[%emt 0:00:09]} Nf6 {[%emt 0:00:03]} 5. Nc3 {[%emt 0:00:11]} a6 {[%emt 0:00:15]} 6. Be2 {[%emt 0:00:26]} e5 {[%emt 0:00:12]} 7. Nb3 {[%emt 0:00:09]} Be6 {[%emt 0:00:25]} 8. f4 {[%emt 0:00:12]} Be7 {[%emt 0:01:10]} 9. O-O {[%emt 0:00:27]} Qc7 {[%emt 0:00:52]} 10. Kh1 {[%emt 0:00:26]} Nbd7 {[%emt 0:01:06]} 11. f5 {[%emt 0:03:36]} Bc4 {[%emt 0:00:09]} 12. g4 {[%emt 0:04:38]} h6 {[%emt 0:10:07]} 13. a4 {[%emt 0:02:16]} Rc8 {[%emt 0:05:52]} 14. Be3 {[%emt 0:01:21]} Bxe2 {[%emt 0:02:54]} 15. Qxe2 {[%emt 0:00:24]} Nb6 {[%emt 0:09:23]} 16. g5 {[%emt 0:02:03]} hxg5 {[%emt 0:00:50]} 17. Bxg5 {[%emt 0:00:15]} Nh5 {[%emt 0:17:16]} 18. Bxe7 {[%emt 0:02:42]} Ng3+ {[%emt 0:00:11]} 19. Kg2 {[%emt 0:05:17]} Nxe2 {[%emt 0:00:04]} 20. Nxe2 {[%emt 0:02:39]} Qxe7 {[%emt 0:00:12]} 21. Nc3 {[%emt 0:00:23]} Qg5+ {[%emt 0:00:17]} 0-1

[Event "FIDE WAC U1700 2021"]
[Site "Rhodes"]
[Date "2021.10.24"]
[Round "8.3"]
[White "Fishchuk, Vladyslav"]
[Black "Abdulrahim, Salem"]
[Result "1/2-1/2"]
[ECO "D41"]
[WhiteElo "1648"]
[BlackElo "1629"]
[Annotator "NA"]
[PlyCount "52"]
[EventDate "2021.10.17"]
[EventType "swiss"]
[EventCountry "GRE"]
[SourceTitle "playchess.com"]
[Source "ChessBase"]
[SourceQuality "1"]
[TimeControl "5400+30"]

1. Nf3 {[%emt 0:00:04]} d5 {[%emt 0:00:19]} 2. d4 {[%emt 0:00:03]} Nf6 {[%emt 0:00:11]} 3. c4 {[%emt 0:00:06]} e6 {[%emt 0:00:05]} 4. g3 {[%emt 0:00:05]} c5 {[%emt 0:00:43]} 5. Bg2 {[%emt 0:00:12]} Be7 {[%emt 0:00:10]} 6. O-O {[%emt 0:00:30]} O-O {[%emt 0:00:08]} 7. cxd5 {[%emt 0:00:05]} Nxd5 {[%emt 0:04:39]} 8. e4 {[%emt 0:00:57]} Nf6 {[%emt 0:00:07]} 9. Nc3 {[%emt 0:00:31]} Nc6 {[%emt 0:00:44]} 10. d5 {[%emt 0:06:45]} exd5 {[%emt 0:04:14]} 11. e5 {[%emt 0:02:54]} Ne4 {[%emt 0:18:10]} 12. Nxd5 {[%emt 0:00:45]} Bg4 {[%emt 0:00:31]} 13. Qd3 {[%emt 0:15:03]} Bxf3 {[%emt 0:09:26]} 14. Nxe7+ {[%emt 0:00:37]} Qxe7 {[%emt 0:02:31]} 15. Qxf3 {[%emt 0:00:06]} Ng5 {[%emt 0:01:52]} 16. Qg4 {[%emt 0:03:01]} Ne6 {[%emt 0:02:53]} 17. Bxc6 {[%emt 0:05:20]} bxc6 {[%emt 0:00:03]} 18. Be3 {[%emt 0:00:54]} Rab8 {[%emt 0:00:33]} 19. f4 {[%emt 0:04:08]} Nd4 {[%emt 0:27:46]} 20. Rf2 {[%emt 0:15:49]} Rb4 {[%emt 0:11:41]} 21. Rd1 {[%emt 0:08:35]} f6 {[%emt 0:02:27]} 22. exf6 {[%emt 0:00:55]} Rxf6 {[%emt 0:00:39]} 23. Bxd4 {[%emt 0:00:52]} Rxd4 {[%emt 0:01:04]} 24. Rxd4 {[%emt 0:05:58]} cxd4 {[%emt 0:00:01]} 25. Re2 {[%emt 0:00:56]} Qd8 {[%emt 0:02:10]} 26. Qh5 {[%emt 0:01:38]} Rf8 {[%emt 0:03:02]} 1/2-1/2

[Event "FIDE WAC U1700 2021"]
[Site "Rhodes"]
[Date "2021.10.24"]
[Round "8.4"]
[White "Alhejab, Meshal"]
[Black "Kanev, Evgeny"]
[Result "0-1"]
[ECO "B07"]
[WhiteElo "1681"]
[BlackElo "1593"]
[Annotator "NA"]
[PlyCount "63"]
[EventDate "2021.10.17"]
[EventType "swiss"]
[EventCountry "GRE"]
[SourceTitle "playchess.com"]
[Source "ChessBase"]
[SourceQuality "1"]
[TimeControl "5400+30"]

1. e4 {[%emt 0:00:02]} d6 {[%emt 0:00:02]} 2. d4 {[%emt 0:00:07]} g6 {[%emt 0:00:07]} 3. Be3 {[%emt 0:00:14]} Nf6 {[%emt 0:00:12]} 4. Nc3 {[%emt 0:00:06]} Bg7 {[%emt 0:00:17]} 5. f3 {[%emt 0:00:20]} Nbd7 {[%emt 0:00:49]} 6. Qd2 {[%emt 0:00:31]} e5 {[%emt 0:00:23]} 7. d5 {[%emt 0:00:09]} O-O {[%emt 0:00:06]} 8. h4 {[%emt 0:01:03]} Nh5 {[%emt 0:01:18]} 9. Nge2 {[%emt 0:03:48]} f5 {[%emt 0:01:35]} 10. g4 {[%emt 0:01:53]} fxg4 {[%emt 0:09:20]} 11. fxg4 {[%emt 0:00:03]} Nf4 {[%emt 0:00:05]} 12. g5 {[%emt 0:21:49]} Nb6 {[%emt 0:17:49]} 13. Nxf4 {[%emt 0:09:04]} exf4 {[%emt 0:00:07]} 14. Bxf4 {[%emt 0:00:06]} Qe7 {[%emt 0:15:06]} 15. Qe3 {[%emt 0:08:13]} Bg4 {[%emt 0:07:00]} 16. Bb5 {[%emt 0:05:49]} c6 {[%emt 0:16:00]} 17. dxc6 {[%emt 0:03:58]} Bxc3+ {[%emt 0:01:14]} 18. bxc3 {[%emt 0:00:53]} bxc6 {[%emt 0:03:21]} 19. Bxc6 {[%emt 0:02:22]} Rac8 {[%emt 0:00:17]} 20. Bd5+ {[%emt 0:00:43]} Nxd5 {[%emt 0:00:10]} 21. exd5 {[%emt 0:00:43]} Rce8 {[%emt 0:00:27]} 22. Qxe7 {[%emt 0:06:25]} Rxe7+ {[%emt 0:00:01]} 23. Kf2 {[%emt 0:00:32]} Rxf4+ {[%emt 0:00:11]} 24. Kg3 {[%emt 0:00:08]} Rc4 {[%emt 0:06:05]} 25. Rae1 {[%emt 0:00:57]} Rxe1 {[%emt 0:00:39]} 26. Rxe1 {[%emt 0:00:20]} Kf7 {[%emt 0:00:29]} 27. Rb1 {[%emt 0:02:26]} Bc8 {[%emt 0:00:23]} 28. Rf1+ {[%emt 0:03:17]} Bf5 {[%emt 0:00:21]} 29. Rf3 {[%emt 0:01:10]} Rg4+ {[%emt 0:01:27]} 30. Kf2 {[%emt 0:00:34]} Rxh4 {[%emt 0:00:06]} 31. Ke3 {[%emt 0:00:20]} h6 {[%emt 0:08:41]} 32. gxh6 {[%emt 0:00:21]} 0-1